bitfinex/quotes_SOLUSD_20260228
["timestamp","ask_amount","ask_price","bid_price","bid_amount"]
[1772303329505,12.30966185,81.237,81.216,3.50041269]
[1772303329704,3.1206095,81.236,81.216,3.50041269]
[1772303329910,6.05898595,81.23,81.216,3.50041269]
[1772303331415,6.05898595,81.23,81.218,3.21257307]
[1772303334119,3.1206095,81.228,81.21,3.21257307]
[1772303335122,12.31117731,81.227,81.21,3.21257307]
[1772303338820,3.1206095,81.228,81.21,12.31366496]
[1772303339121,12.31087419,81.229,81.211,3.21257307]
[1772303343829,6.05898595,81.22,81.211,3.21257307]
[1772303344722,6.05898595,81.23,81.211,3.21257307]
[1772303345314,3.1206095,81.237,81.211,3.21257307]
[1772303346629,15.43036618,81.237,81.213,3.21257307]
[1772303346834,6.05898595,81.23,81.213,3.21257307]
[1772303347335,3.1206095,81.236,81.213,3.21257307]
[1772303347731,3.1206095,81.236,81.215,3.21257307]
[1772303348039,6.05898595,81.23,81.215,3.21257307]
[1772303348745,6.05898595,81.23,81.217,3.21257307]
[1772303349337,6.05898595,81.24,81.218,3.21257307]
[1772303349654,3.1206095,81.249,81.218,3.21257307]
[1772303350860,3.1206095,81.239,81.22,3.21257307]
[1772303354262,3.1206095,81.239,81.222,3.21257307]
[1772303356466,12.30951032,81.238,81.216,12.31273542]
[1772303357464,12.30951032,81.238,81.208,30.78505166]
[1772303357961,12.30814676,81.247,81.208,30.78505166]
[1772303358258,6.05898595,81.24,81.208,30.78505166]
[1772303359867,12.3093588,81.239,81.208,30.78505166]
[1772303360362,6.05898595,81.25,81.209,0.28432314]
[1772303360660,6.05898595,81.24,81.209,0.28432314]
[1772303362665,6.05898595,81.24,81.211,0.28432314]
[1772303363574,6.05898595,81.23,81.21,12.31375446]
[1772303365751,6.05898595,81.23,81.203,0.28432314]
[1772303367862,6.05898595,81.23,81.205,0.28432314]
[1772303369746,6.05898595,81.23,81.206,12.314361]
[1772303369947,6.05898595,81.23,81.207,0.28432314]
[1772303371066,6.05898595,81.23,81.208,12.31405772]
[1772303374455,6.05898595,81.23,81.205,0.28432314]
[1772303377162,6.05898595,81.23,81.207,0.28432314]
[1772303380081,6.05898595,81.23,81.196,30.78957123]
[1772303380257,6.05898595,81.23,81.197,0.28432314]
[1772303380590,6.05898595,81.22,81.197,12.60004909]
[1772303380871,6.05898595,81.22,81.197,12.31572595]
[1772303381275,6.06034437,81.22,81.198,0.28432314]
[1772303381861,6.06034437,81.24,81.198,5.64518502]
[1772303382660,6.06034437,81.23,81.199,43.1039791]
[1772303387668,6.05923118,81.23,81.199,43.1039791]
[1772303387875,6.05923118,81.24,81.199,43.1039791]
[1772303388169,6.05923118,81.24,81.201,0.28432314]
[1772303394188,6.05923118,81.24,81.203,0.28432314]
[1772303394791,12.3093588,81.239,81.203,0.28432314]
[1772303396173,12.3093588,81.239,81.205,0.28432314]
[1772303398500,6.05923118,81.23,81.207,0.28432314]
[1772303398801,6.05923118,81.23,81.16,55.34419398]
[1772303398802,6.05923118,81.22,81.189,43.10928819]
[1772303399092,6.05923118,81.23,81.182,5.36086188]
[1772303399308,6.05923118,81.23,81.183,0.14216157]
[1772303399591,12.3093588,81.239,81.183,0.28432314]
[1772303399592,6.05923118,81.22,81.183,0.28432314]
[1772303399794,6.05923118,81.22,81.183,0.14216157]
[1772303399982,6.05923118,81.22,81.178,0.28432314]
[1772303400299,12.3093588,81.239,81.191,0.28432314]
[1772303400481,18.36848882,81.24,81.203,0.28432314]
[1772303402396,6.05923118,81.25,81.211,0.28432314]
[1772303402613,6.05923118,81.23,81.18,6.05923118]
[1772303402900,6.05923118,81.23,81.191,0.28432314]
[1772303403602,6.05923118,81.23,81.185,0.28432314]
[1772303403795,6.05923118,81.23,81.187,5.64518502]
[1772303403796,12.31087419,81.229,81.187,5.64518502]
[1772303404402,30.76927217,81.25,81.191,0.28432314]
[1772303404581,6.05923118,81.24,81.191,0.28432314]
[1772303405315,12.30784378,81.249,81.201,0.28432314]
[1772303405482,12.30784378,81.249,81.201,5.64518502]
[1772303406107,6.05923118,81.24,81.203,0.28432314]
[1772303407496,6.05923118,81.24,81.205,0.28432314]
[1772303409087,18.36845965,81.24,81.205,0.28432314]
[1772303409486,6.05923118,81.24,81.205,0.28432314]
[1772303409908,6.05923118,81.24,81.207,0.28432314]
[1772303411009,12.30871368,81.244,81.208,43.09920204]
[1772303411389,8.50757152,81.257,81.221,0.28432314]
[1772303411590,8.50757152,81.257,81.23,6.05923118]
[1772303411911,8.50757152,81.257,81.221,0.28432314]
[1772303412412,8.50757152,81.257,81.231,0.28432314]
[1772303412989,8.50757152,81.257,81.233,0.28432314]
[1772303413409,6.05923118,81.28,81.233,0.28432314]
[1772303413715,6.05923118,81.29,81.251,0.28432314]
[1772303415096,6.05923118,81.29,81.253,0.28432314]
[1772303415416,12.30178744,81.289,81.253,0.28432314]
[1772303416791,6.05923118,81.29,81.253,0.28432314]
[1772303416993,18.36097976,81.29,81.253,0.28432314]
[1772303417208,18.36097976,81.29,81.255,0.28432314]
[1772303418208,18.36097976,81.29,81.257,0.28432314]
[1772303418612,3.69383402,81.318,81.257,0.28432314]
[1772303418613,12.30047417,81.298,81.26,6.05923118]
[1772303419192,30.84660779,81.31,81.27,6.05923118]
[1772303419193,0.1,81.31,81.27,6.05923118]
[1772303419392,6.15923118,81.31,81.27,6.05923118]
[1772303419594,12.29876151,81.309,81.271,0.28432314]
[1772303419907,6.15923118,81.31,81.271,0.28432314]
[1772303420417,0.1,81.31,81.28,6.05923118]
[1772303420714,6.15923118,81.31,81.273,0.28432314]
[1772303421094,0.1,81.31,81.28,6.05923118]
[1772303421293,6.15923118,81.31,81.273,0.28432314]
[1772303422599,12.29876151,81.309,81.275,0.28432314]
[1772303423210,6.15923118,81.31,81.275,0.28432314]
[1772303427602,6.15923118,81.31,81.277,0.28432314]
[1772303430721,6.15923118,81.31,81.29,6.05923118]
[1772303430722,0.1,81.31,81.29,6.05923118]
[1772303432026,0.1,81.31,81.291,43.05519675]
[1772303437115,0.1,81.31,81.292,0.28432314]
[1772303437318,6.15923118,81.33,81.291,43.05519675]
[1772303437319,0.1,81.33,81.303,0.28432314]
[1772303437529,0.1,81.33,81.31,6.05923118]
[1772303437829,12.2932011,81.346,81.31,6.05923118]
[1772303438038,12.29365028,81.343,81.31,6.05923118]
[1772303439133,6.15923118,81.35,81.31,6.05923118]
[1772303439509,12.29330162,81.346,81.311,43.0446065]
[1772303439836,18.45185639,81.35,81.311,43.0446065]
[1772303443322,18.43446591,81.35,81.311,43.0446065]
[1772303446139,6.0418407,81.32,81.297,33.01509329]
[1772303446446,6.0418407,81.31,81.297,32.3532147]
[1772303446746,6.0418407,81.31,81.297,44.65374772]
[1772303447625,12.2942254,81.339,81.297,44.65374772]
[1772303447828,6.0418407,81.32,81.297,75.40518996]
[1772303448418,6.0418407,81.32,81.297,44.65374772]
[1772303450052,6.0418407,81.32,81.299,12.30027429]
[1772303450244,6.0418407,81.32,81.299,12.80027429]
[1772303450541,6.0418407,81.32,81.3,0.5]
[1772303450741,6.1418407,81.34,81.301,0.5]
[1772303451244,6.0418407,81.33,81.301,0.5]
[1772303452645,12.29573706,81.329,81.303,0.5]
[1772303454146,6.0418407,81.33,81.303,0.5]
[1772303454924,12.29573706,81.329,81.304,12.29951785]
[1772303455129,12.29573706,81.329,81.305,0.5]
[1772303455941,1e-08,81.35,81.322,0.5]
[1772303456132,1e-08,81.35,81.331,0.5]
[1772303456838,1e-08,81.35,81.32,6.0418407]
[1772303456839,1e-08,81.35,81.321,0.5]
[1772303457061,6.0418407,81.34,81.309,0.5]
[1772303457573,6.0418407,81.34,81.308,12.29891277]
[1772303457574,1e-08,81.35,81.331,0.5]
[1772303457727,1e-08,81.35,81.341,0.5]
[1772303457926,0.1,81.36,81.341,0.5]
[1772303459436,0.1,81.36,81.343,0.5]
[1772303460035,0.1,81.4,81.346,0.49492129]
[1772303460329,6.1418407,81.44,81.381,0.5]
[1772303460534,6.0418407,81.43,81.389,0.5]
[1772303460752,6.0418407,81.41,81.389,0.5]
[1772303460934,6.1418407,81.42,81.381,0.5]
[1772303461135,6.1418407,81.42,81.383,0.5]
[1772303461361,6.1418407,81.42,81.38,6.0418407]
[1772303461362,6.1418407,81.42,81.391,0.5]
[1772303461966,6.0418407,81.43,81.399,0.5]
[1772303462151,6.1418407,81.44,81.406,0.28432314]
[1772303462467,61.56123451,81.502,81.4,6.32616384]
[1772303462468,0.3,81.479,81.441,0.28432314]
[1772303462672,0.3,81.479,81.442,5.64518502]
[1772303462844,6.1418407,81.48,81.442,0.28432314]
[1772303462845,0.3,81.459,81.442,0.28432314]
[1772303463051,6.0418407,81.45,81.429,0.49492129]
[1772303463450,6.0418407,81.45,81.35,61.73617905]
[1772303463451,6.0418407,81.44,81.42,0.49492129]
[1772303463651,6.0418407,81.44,81.416,0.28432314]
[1772303463876,6.0418407,81.43,81.409,0.49492129]
[1772303464050,6.3418407,81.43,81.401,0.49492129]
[1772303464658,6.3418407,81.43,81.377,3.69383402]
[1772303464659,6.0418407,81.41,81.394,0.49492129]
[1772303465073,0.45527727,81.409,81.371,5.36086188]
[1772303465351,0.45527727,81.478,81.401,0.14216157]
[1772303465566,0.45527727,81.469,81.43,16.15976259]
[1772303465772,0.45527727,81.469,81.431,0.28432314]
[1772303467057,0.45527727,81.469,81.438,0.49492129]
[1772303467457,0.45527727,81.459,81.436,0.28432314]
[1772303468273,16.15976259,81.45,81.421,0.49492129]
[1772303468586,0.45527727,81.475,81.422,0.49492129]
[1772303468877,0.1,81.48,81.431,0.49492129]
[1772303468878,16.15976259,81.46,81.431,0.49492129]
[1772303469380,0.1,81.48,81.431,0.49492129]
[1772303469562,16.15976259,81.47,81.441,0.49492129]
[1772303470054,16.15976259,81.45,81.428,0.49492129]
[1772303471180,16.15976259,81.45,81.43,0.49492129]
[1772303471674,0.45527727,81.449,81.414,0.49492129]
[1772303471874,16.15976259,81.44,81.415,0.77924443]
[1772303472059,0.45527727,81.443,81.418,0.49492129]
[1772303472259,16.15976259,81.44,81.418,0.49492129]
[1772303472789,16.61503986,81.43,81.408,12.28371509]
[1772303473574,0.45527727,81.439,81.409,0.49492129]
[1772303474780,0.45527727,81.437,81.41,12.28350325]
[1772303475163,0.45527727,81.439,81.418,0.14216157]
[1772303475672,0.45527727,81.439,81.418,0.77924443]
[1772303475881,0.45527727,81.439,81.418,0.63708286]
[1772303476174,16.15976259,81.44,81.419,0.49492129]
[1772303476393,0.45527727,81.446,81.419,0.49492129]
[1772303476592,0.47822494,81.449,81.419,0.49492129]
[1772303476805,0.47822494,81.44,81.419,0.49492129]
[1772303477007,16.15976259,81.44,81.419,12.7769291]
[1772303477306,0.47822494,81.439,81.414,12.28280081]
[1772303478103,0.47822494,81.439,81.414,12.743944]
[1772303479708,12.75742226,81.439,81.414,12.743944]
[1772303480095,12.27919732,81.439,81.414,12.743944]
[1772303480301,0.47822494,81.438,81.414,12.743944]
[1772303481605,12.75765566,81.437,81.414,12.743944]
[1772303483013,7.13940162,81.524,81.431,0.46114319]
[1772303483014,0.1,81.48,81.431,0.46114319]
[1772303483182,0.1,81.48,81.451,0.46114319]
[1772303483382,16.15976259,81.5,81.461,0.46114319]
[1772303483583,16.15976259,81.49,81.461,0.46114319]
[1772303484601,30.66920198,81.515,81.461,0.46114319]
[1772303484602,3.69383402,81.512,81.461,0.46114319]
[1772303484788,16.15976259,81.51,81.471,0.46114319]
[1772303485103,16.15976259,81.5,81.473,0.46114319]
[1772303485309,0.1,81.53,81.492,0.28432314]
[1772303485498,0.31669635,81.546,81.516,0.46114319]
[1772303485699,12.25824487,81.578,81.541,0.46114319]
[1772303485913,0.31669635,81.609,81.577,6.40752284]
[1772303485914,3.69383402,81.58,81.577,6.40752284]
[1772303486195,30.608372,81.677,81.58,0.14216157]
[1772303486379,30.608372,81.677,81.577,6.40752284]
[1772303486380,6.38338918,81.668,81.609,0.31669635]
[1772303486580,12.24214972,81.685,81.6,6.01685675]
[1772303486795,6.01685675,81.64,81.579,0.14216157]
[1772303486992,287.69051842,81.685,81.585,0.31669635]
[1772303487199,6.01685675,81.68,81.586,0.14216157]
[1772303487401,16.07271597,81.6,81.551,0.31669635]
[1772303487625,16.07271597,81.66,81.579,17.5777764]
[1772303487921,16.07271597,81.66,81.577,0.91191443]
[1772303488088,16.07271597,81.59,81.577,0.91191443]
[1772303488784,16.07271597,81.59,81.537,0.5]
[1772303489119,16.07271597,81.59,81.508,3.69383402]
[1772303489120,16.07271597,81.58,81.54,12.26391954]
[1772303489305,16.07271597,81.55,81.48,61.48198946]
[1772303489486,16.07271597,81.54,81.5,16.07271597]
[1772303489685,16.07271597,81.51,81.486,2.29808854]
[1772303490191,16.07271597,81.52,81.486,2.29808854]
[1772303490720,16.07271597,81.53,81.491,5.64518502]
[1772303490885,16.07271597,81.52,81.486,14.57013527]
[1772303491085,16.07271597,81.53,81.491,5.64518502]
[1772303491286,16.07271597,81.53,81.494,0.46114319]
[1772303491499,16.07271597,81.53,81.507,0.14216157]
[1772303491700,16.07271597,81.53,81.507,0.46114319]
[1772303492100,16.07271597,81.54,81.507,0.46114319]
[1772303492304,16.07271597,81.53,81.507,0.46114319]
[1772303493500,16.07271597,81.55,81.514,0.28432314]
[1772303493704,12.2616639,81.555,81.527,0.28432314]
[1772303493916,16.07271597,81.55,81.528,0.46114319]
[1772303495232,16.07271597,81.54,81.517,0.46114319]
[1772303496629,16.07271597,81.54,81.519,0.46114319]
[1772303496827,16.07271597,81.55,81.519,0.46114319]
[1772303497029,6.88578581,81.589,81.528,0.28432314]
[1772303497212,16.07271597,81.58,81.552,0.28432314]
[1772303497414,16.07271597,81.58,81.551,0.46114319]
[1772303497415,6.40756087,81.589,81.56,0.28432314]
[1772303497608,16.07271597,81.61,81.577,0.46114319]
[1772303498213,16.07271597,81.59,81.568,0.28432314]
[1772303498412,16.07271597,81.59,81.555,0.46114319]
[1772303498718,16.07271597,81.59,81.565,0.28432314]
[1772303499030,16.07271597,81.59,81.565,0.74546633]
[1772303499605,12.25655419,81.589,81.565,0.46114319]
[1772303499809,12.25655419,81.589,81.54,16.07271597]
[1772303499810,16.07271597,81.57,81.54,0.46114319]
[1772303500036,16.07271597,81.56,81.532,12.26510607]
[1772303500219,16.07271597,81.55,81.528,0.46114319]
[1772303500538,0.47822494,81.57,81.53,0.46114319]
[1772303500724,16.07271597,81.54,81.523,12.26634983]
[1772303501120,16.07271597,81.55,81.523,12.72749302]
[1772303501307,3.69383402,81.589,81.532,0.28432314]
[1772303501506,16.07271597,81.56,81.537,0.46114319]
[1772303501708,16.07271597,81.55,81.528,0.46114319]
[1772303502210,16.07271597,81.54,81.517,12.26731925]
[1772303502648,16.07271597,81.54,81.517,0.46114319]
[1772303503133,16.07271597,81.53,81.501,12.2697881]
[1772303503342,0.47822494,81.539,81.49,30.67841695]
[1772303503343,16.07271597,81.52,81.502,0.46114319]
[1772303503852,16.07271597,81.51,81.471,0.46114319]
[1772303504023,16.07271597,81.5,81.472,0.46114319]
[1772303504412,16.07271597,81.5,81.474,0.46114319]
[1772303504634,0.47822494,81.513,81.474,0.46114319]
[1772303504635,16.07271597,81.49,81.475,12.27370359]
[1772303504806,16.07271597,81.5,81.476,0.46114319]
[1772303505330,16.12304531,81.5,81.477,0.28432314]
[1772303505828,16.12304531,81.5,81.476,0.46114319]
[1772303506008,16.12304531,81.49,81.47,33.4995542]
[1772303506213,12.26909939,81.506,81.471,0.4728974]
[1772303506456,12.26836212,81.511,81.477,0.4728974]
[1772303506745,16.12304531,81.5,81.477,0.4728974]
[1772303506955,16.12304531,81.5,81.479,0.4728974]
[1772303507156,16.12304531,81.5,81.47,21.22515486]
[1772303507157,16.12304531,81.49,81.47,21.22515486]
[1772303507452,16.12304531,81.48,81.47,21.22515486]
[1772303507650,0.4900517,81.508,81.471,0.4728974]
[1772303507842,16.12304531,81.49,81.471,0.4728974]
[1772303508756,16.12304531,81.49,81.47,21.22515486]
[1772303508928,16.12304531,81.49,81.471,12.27430619]
[1772303509128,16.12304531,81.49,81.47,21.22515486]
[1772303509129,12.27159493,81.489,81.47,21.22515486]
[1772303509337,16.12304531,81.48,81.47,21.22515486]
[1772303510343,0.4900517,81.517,81.475,0.28432314]
[1772303510546,0.4900517,81.499,81.47,33.49957969]
[1772303510761,16.12304531,81.49,81.47,33.49957969]
[1772303511436,12.27043557,81.497,81.47,33.49957969]
[1772303512656,12.27043557,81.497,81.47,33.97247709]
[1772303513346,12.27043557,81.497,81.471,0.4728974]
[1772303513553,0.4900517,81.499,81.471,0.4728974]
[1772303514779,12.27023976,81.498,81.471,0.4728974]
[1772303514971,12.27023976,81.498,81.472,12.27415553]
[1772303516366,12.27023976,81.498,81.443,0.5]
[1772303516367,16.12304531,81.48,81.443,0.5]
[1772303516550,16.12304531,81.49,81.444,0.5]
[1772303516751,16.12304531,81.48,81.444,0.5]
[1772303517067,12.27310104,81.479,81.445,0.5]
[1772303517973,16.12304531,81.47,81.445,0.5]
[1772303518154,28.39758261,81.47,81.446,12.27807381]
[1772303518355,16.12304531,81.48,81.447,0.5]
[1772303519569,12.27310104,81.479,81.449,0.5]
[1772303520578,16.12304531,81.49,81.451,0.5]
[1772303520767,12.27159493,81.489,81.451,0.5]
[1772303521172,12.27159493,81.489,81.421,98.25425612]
[1772303521173,16.12304531,81.47,81.44,0.5]
[1772303521570,12.27460751,81.469,81.441,12.77882761]
[1772303521961,16.12304531,81.46,81.437,12.27938072]
[1772303522181,16.12304531,81.46,81.433,12.27995983]
[1772303522674,16.12304531,81.46,81.42,16.32304531]
[1772303522675,16.12304531,81.45,81.424,0.5]
[1772303522882,16.12304531,81.46,81.424,0.5]
[1772303523493,12.27460751,81.469,81.431,0.5]
[1772303523659,12.27460751,81.469,81.433,0.5]
[1772303525379,12.27460751,81.469,81.437,0.5]
[1772303525882,16.12304531,81.47,81.439,0.5]
[1772303527685,16.12304531,81.48,81.441,0.5]
[1772303527888,16.12304531,81.48,81.44,42.97642435]
[1772303527889,59.07310052,81.49,81.447,0.5]
[1772303528064,16.12304531,81.48,81.447,0.5]
[1772303528380,12.27144434,81.49,81.461,0.5]
[1772303528582,46.79821799,81.5,81.461,0.5]
[1772303528877,12.26873435,81.508,81.471,0.5]
[1772303529690,12.26873435,81.508,81.473,0.5]
[1772303530072,12.26873435,81.508,81.477,0.5]
[1772303530473,12.26873435,81.508,81.481,0.5]
[1772303531075,28.38846908,81.53,81.491,0.5]
[1772303531580,1.38943175,81.565,81.472,42.95954437]
[1772303531581,16.12304531,81.55,81.511,0.5]
[1772303531788,16.12304531,81.56,81.522,0.5]
[1772303531971,16.12304531,81.55,81.521,12.26677788]
[1772303534373,16.12304531,81.55,81.517,0.5]
[1772303534575,1.38943175,81.565,81.531,0.5]
[1772303535178,3.69383402,81.591,81.516,42.93635605]
[1772303535179,16.12304531,81.62,81.556,0.28432314]
[1772303535372,12.25204915,81.619,81.58,16.12304531]
[1772303535573,12.2499396,81.634,81.591,0.5]
[1772303535871,3.69383402,81.637,81.61,16.12304531]
[1772303536075,12.24914906,81.639,81.61,16.12304531]
[1772303536390,12.25204915,81.619,81.581,12.75775609]
[1772303536596,12.25204915,81.619,81.582,0.5]
[1772303536801,12.25204915,81.619,81.571,12.75923649]
[1772303536802,16.12304531,81.61,81.571,12.75923649]
[1772303536982,42.88217203,81.619,81.581,0.5]
[1772303536983,12.25204915,81.619,81.581,0.5]
[1772303537179,42.88217203,81.619,81.581,0.5]
[1772303537700,12.25204915,81.619,81.581,0.5]
[1772303537877,28.37500223,81.62,81.581,0.5]
[1772303538493,16.22304531,81.63,81.591,0.5]
[1772303538684,0.1,81.63,81.601,0.5]
[1772303538888,61.13670371,81.696,81.582,42.90162045]
[1772303538889,16.12304531,81.65,81.611,0.49376487]
[1772303539392,16.12304531,81.65,81.617,0.49376487]
[1772303539890,16.12304531,81.65,81.59,5.36086188]
[1772303539891,0.2483068,81.686,81.623,0.49376487]
[1772303540219,0.2483068,81.686,81.6,5.36086188]
[1772303540220,0.5,81.696,81.633,3.69383402]
[1772303540387,16.12304531,81.7,81.661,0.28432314]
[1772303540589,0.5,81.706,81.672,12.24409834]
[1772303540794,0.5,81.699,81.672,12.24409834]
[1772303541189,0.5,81.699,81.666,0.28432314]
[1772303541482,0.5,81.709,81.681,0.28432314]
[1772303541682,48.9182999,81.769,81.665,12.24514338]
[1772303541683,42.79879674,81.778,81.706,0.28432314]
[1772303541898,16.12304531,81.74,81.72,6.3942724]
[1772303542091,16.12304531,81.74,81.72,4.8942724]
[1772303542501,12.23555898,81.729,81.695,0.5]
[1772303542688,16.12304531,81.72,81.691,12.12834497]
[1772303543001,16.12304531,81.72,81.66,5.36086188]
[1772303543002,16.12304531,81.7,81.667,0.49376487]
[1772303543201,3.69383402,81.722,81.667,0.49376487]
[1772303543379,16.12304531,81.7,81.667,0.49376487]
[1772303543585,3.69383402,81.717,81.676,0.49376487]
[1772303543899,6.39702495,81.738,81.69,16.61681018]
[1772303544085,3.69383402,81.735,81.691,0.49376487]
[1772303544281,16.12304531,81.75,81.706,0.49376487]
[1772303544481,16.12304531,81.74,81.706,0.49376487]
[1772303544682,16.12304531,81.74,81.705,0.28432314]
[1772303544683,3.69383402,81.747,81.711,0.49376487]
[1772303545294,28.3554943,81.75,81.711,0.49376487]
[1772303545493,16.12304531,81.74,81.711,0.49376487]
[1772303546093,16.12304531,81.72,81.691,0.49376487]
[1772303546299,16.12304531,81.71,81.691,0.49376487]
[1772303546806,12.23855389,81.709,81.681,0.49376487]
[1772303546984,16.12304531,81.72,81.681,0.49376487]
[1772303547804,16.12304531,81.71,81.681,0.49376487]
[1772303548415,16.12304531,81.7,81.681,0.49376487]
[1772303548586,16.12304531,81.69,81.662,0.49376487]
[1772303548914,16.12304531,81.68,81.662,0.49376487]
[1772303549208,16.12304531,81.68,81.652,0.49376487]
[1772303549409,16.12304531,81.67,81.64,0.49376487]
[1772303549785,16.12304531,81.68,81.64,0.49376487]
[1772303550604,12.24155026,81.689,81.651,0.49376487]
[1772303551111,12.24155026,81.689,81.653,0.49376487]
[1772303551823,42.84542593,81.689,81.653,0.49376487]
[1772303552118,12.24155026,81.689,81.653,0.49376487]
[1772303553324,16.12304531,81.68,81.653,0.49376487]
[1772303553504,16.12304531,81.68,81.654,12.74056233]
[1772303553701,16.12304531,81.68,81.643,12.248329]
[1772303555234,0.46010127,81.668,81.621,0.28432314]
[1772303555520,16.12304531,81.67,81.63,16.12304531]
[1772303555724,16.12304531,81.67,81.631,0.49376487]
[1772303556020,12.24454811,81.669,81.631,0.49376487]
[1772303556222,0.46010127,81.668,81.631,0.49376487]
[1772303556613,16.12304531,81.66,81.631,0.49376487]
[1772303557115,16.12304531,81.66,81.62,16.12304531]
[1772303557116,16.12304531,81.67,81.633,0.49376487]
[1772303557301,12.24371482,81.675,81.633,0.49376487]
[1772303558101,16.58314658,81.67,81.633,0.49376487]
[1772303558303,0.46010127,81.669,81.633,0.49376487]
[1772303558722,16.12304531,81.66,81.633,0.49376487]
[1772303558921,0.46010127,81.669,81.633,0.49376487]
[1772303559318,12.24469804,81.668,81.635,0.49376487]
[1772303559721,12.24389391,81.674,81.635,0.49376487]
[1772303560224,0.46010127,81.708,81.661,0.49376487]
[1772303560521,12.23932623,81.704,81.671,0.49376487]
[1772303560826,0.46010127,81.689,81.65,16.12304531]
[1772303561716,0.46010127,81.687,81.651,12.24724743]
[1772303562816,0.46010127,81.687,81.652,0.49376487]
[1772303564725,0.46010127,81.685,81.653,12.24694744]
[1772303565118,0.46010127,81.685,81.653,12.72552349]
[1772303565932,0.46010127,81.685,81.653,12.24694744]
[1772303566339,0.48346021,81.721,81.67,16.12304531]
[1772303566523,0.48346021,81.709,81.661,0.45271865]
[1772303566728,0.48346021,81.699,81.663,0.45271865]
[1772303566919,0.48346021,81.699,81.662,12.2455977]
[1772303567621,0.48346021,81.699,81.663,0.45271865]
[1772303568622,0.48346021,81.697,81.664,12.69801645]
[1772303568828,0.48346021,81.697,81.665,0.45271865]
[1772303569951,0.48346021,81.679,81.643,31.07351582]
[1772303570260,0.48346021,81.679,81.644,0.45271865]
[1772303570645,0.48346021,81.677,81.644,12.70101613]
[1772303571143,0.48346021,81.669,81.635,12.24964782]
[1772303571526,0.48346021,81.669,81.636,0.45271865]
[1772303572942,0.48346021,81.659,81.632,12.24995549]
[1772303574145,0.48346021,81.659,81.633,0.45271865]
[1772303574338,0.48346021,81.659,81.632,12.24995549]
[1772303575252,0.48346021,81.657,81.626,0.45271865]
[1772303577339,12.2464975,81.656,81.627,12.25084837]
[1772303577647,0.48346021,81.655,81.627,12.25084837]
[1772303578533,0.48346021,81.655,81.622,12.25156703]
[1772303578838,0.48346021,81.649,81.622,12.25156703]
[1772303579648,0.48346021,81.658,81.631,0.45271865]
[1772303579950,0.48346021,81.658,81.623,0.45271865]
[1772303580952,0.48346021,81.658,81.622,12.25156703]
[1772303581557,0.48346021,81.647,81.616,12.2524995]
[1772303581853,0.48346021,81.654,81.621,0.45271865]
[1772303582750,0.48346021,81.673,81.641,0.45271865]
[1772303583147,0.48346021,81.679,81.641,0.45271865]
[1772303583348,0.48346021,81.669,81.641,0.45271865]
[1772303583549,0.48346021,81.669,81.631,0.45271865]
[1772303583750,0.48346021,81.667,81.632,12.250098]
[1772303583945,0.48346021,81.659,81.632,12.250098]
[1772303584143,0.48346021,81.649,81.611,0.45271865]
[1772303584342,0.48346021,81.649,81.612,0.45271865]
[1772303585656,0.48346021,81.637,81.605,12.25415109]
[1772303586155,0.48346021,81.637,81.605,12.70686974]
[1772303586457,0.48346021,81.637,81.605,12.25415109]
[1772303586858,0.48346021,81.629,81.601,12.25463881]
[1772303587057,0.48346021,81.629,81.601,12.13041881]
[1772303587554,0.48346021,81.629,81.565,3.30117084]
[1772303587555,0.48346021,81.629,81.591,12.7089724]
[1772303587754,0.48346021,81.617,81.582,12.25760584]
[1772303588568,0.48346021,81.609,81.582,12.25760584]
[1772303588769,3.69383402,81.647,81.583,0.45271865]
[1772303588947,16.04862919,81.62,81.583,0.45271865]
[1772303589772,0.48346021,81.617,81.585,0.45271865]
[1772303590463,16.04862919,81.62,81.585,0.45271865]
[1772303590763,0.48346021,81.619,81.591,0.45271865]
[1772303591145,0.48346021,81.627,81.591,0.45271865]
[1772303591652,16.04862919,81.63,81.591,0.45271865]
[1772303591855,16.04862919,81.63,81.593,0.45271865]
[1772303593855,0.48346021,81.636,81.601,0.45271865]
[1772303594054,16.04862919,81.63,81.601,0.45271865]
[1772303594870,0.48346021,81.636,81.601,0.45271865]
[1772303595054,0.48346021,81.639,81.601,0.45271865]
[1772303595955,0.48346021,81.639,81.603,0.45271865]
[1772303597375,0.47838092,81.632,81.603,0.45271865]
[1772303597669,16.52701011,81.63,81.603,0.45271865]
[1772303597970,0.47838092,81.629,81.603,0.45271865]
[1772303599875,0.47838092,81.629,81.604,12.25430125]
[1772303601659,0.47838092,81.619,81.594,12.714647]
[1772303602062,0.47838092,81.619,81.595,0.45884388]
[1772303602978,0.47838092,81.619,81.582,0.45884388]
[1772303604279,0.47838092,81.616,81.584,0.45884388]
[1772303604490,0.47838092,81.609,81.583,12.25745559]
[1772303605761,0.47838092,81.609,81.583,12.71629947]
[1772303606683,0.47838092,81.609,81.584,0.45884388]
[1772303607571,0.47838092,81.619,81.584,0.45884388]
[1772303607805,0.47838092,81.635,81.611,0.45884388]